[Event "Live Chess"]
[Site "Chess.com"]
[Date "2024.06.02"]
[Round "-"]
[White "HoarseyHorsey"]
[Black "Rusty_Bridges"]
[Result "1/2-1/2"]
[WhiteElo "1570"]
[BlackElo "1483"]
[TimeControl "300"]
[EndTime "8:41:28 PDT"]
[Termination "Game drawn by repetition"]

1. d4 {[%clk 0:04:58.5]} 1... d5 {[%clk 0:04:58.3]} 2. c4 {[%clk 0:04:57.7]}
2... e5 {[%clk 0:04:57.6]} 3. dxe5 {[%clk 0:04:56.8]} 3... d4 {[%clk 0:04:56.4]}
4. Nf3 {[%clk 0:04:55.5]} 4... Nc6 {[%clk 0:04:51.9]} 5. Nbd2 {[%clk 0:04:53.8]}
5... Nge7 {[%clk 0:04:45.6]} 6. h3 {[%clk 0:04:49.9]} 6... Ng6 {[%clk
0:04:44.4]} 7. g3 {[%clk 0:04:48.4]} 7... Ngxe5 {[%clk 0:04:41.3]} 8. Bg2 {[%clk
0:04:47.6]} 8... Be6 {[%clk 0:04:32.1]} 9. b3 {[%clk 0:04:42.7]} 9... Bb4 {[%clk
0:04:20.1]} 10. O-O {[%clk 0:04:40.4]} 10... Qd7 {[%clk 0:04:15.1]} 11. a3
{[%clk 0:04:39.4]} 11... Bxd2 {[%clk 0:04:13.5]} 12. Bxd2 {[%clk 0:04:39.3]}
12... Bxh3 {[%clk 0:04:11.2]} 13. Bf4 {[%clk 0:04:30.8]} 13... Nxf3+ {[%clk
0:03:41.9]} 14. exf3 {[%clk 0:04:30.7]} 14... Bxg2 {[%clk 0:03:36.2]} 15. Kxg2
{[%clk 0:04:30.6]} 15... O-O-O {[%clk 0:03:32.3]} 16. b4 {[%clk 0:04:27.7]}
16... f6 {[%clk 0:03:27.8]} 17. b5 {[%clk 0:04:26.4]} 17... Ne5 {[%clk
0:03:26.7]} 18. a4 {[%clk 0:04:24.7]} 18... g5 {[%clk 0:03:23.5]} 19. Bxe5
{[%clk 0:04:23]} 19... fxe5 {[%clk 0:03:21.9]} 20. c5 {[%clk 0:04:22.5]} 20...
Qf5 {[%clk 0:03:10.5]} 21. a5 {[%clk 0:04:18.5]} 21... h5 {[%clk 0:03:07.8]} 22.
b6 {[%clk 0:04:16.7]} 22... cxb6 {[%clk 0:03:04]} 23. cxb6 {[%clk 0:04:14.4]}
23... a6 {[%clk 0:03:03]} 24. Rc1+ {[%clk 0:04:11]} 24... Kb8 {[%clk 0:03:01.8]}
25. Qe2 {[%clk 0:04:06.4]} 25... h4 {[%clk 0:02:58.5]} 26. g4 {[%clk 0:04:02.4]}
26... h3+ {[%clk 0:02:55.4]} 27. Kh2 {[%clk 0:04:00.9]} 27... Qf4+ {[%clk
0:02:53.9]} 28. Kh1 {[%clk 0:04:00.3]} 28... Rdf8 {[%clk 0:02:34.7]} 29. Rc5
{[%clk 0:03:44.4]} 29... Re8 {[%clk 0:02:16.5]} 30. Re1 {[%clk 0:03:39.4]} 30...
Rhf8 {[%clk 0:01:59.8]} 31. Rxe5 {[%clk 0:03:37.2]} 31... Rxe5 {[%clk
0:01:43.2]} 32. Qxe5+ {[%clk 0:03:35.7]} 32... Qxe5 {[%clk 0:01:39.6]} 33. Rxe5
{[%clk 0:03:35.4]} 33... Kc8 {[%clk 0:01:32.7]} 34. Rxg5 {[%clk 0:03:24.2]}
34... Rxf3 {[%clk 0:01:29.7]} 35. Rd5 {[%clk 0:03:15]} 35... Rxf2 {[%clk
0:01:16.2]} 36. Rxd4 {[%clk 0:03:13.9]} 36... Rg2 {[%clk 0:01:06.9]} 37. Rf4
{[%clk 0:03:05.2]} 37... Rg3 {[%clk 0:01:01]} 38. Kh2 {[%clk 0:03:01.7]} 38...
Ra3 {[%clk 0:00:54.3]} 39. Rf5 {[%clk 0:02:59.3]} 39... Kd7 {[%clk 0:00:47.2]}
40. Rd5+ {[%clk 0:02:46.5]} 40... Ke6 {[%clk 0:00:44]} 41. Rf5 {[%clk
0:02:45.9]} 41... Rb3 {[%clk 0:00:34.7]} 42. Rc5 {[%clk 0:02:42.1]} 42... Kd6
{[%clk 0:00:30.4]} 43. Rf5 {[%clk 0:02:40.8]} 43... Ke6 {[%clk 0:00:28.7]} 44.
Rh5 {[%clk 0:02:39.2]} 44... Ra3 {[%clk 0:00:23.4]} 45. Rf5 {[%clk 0:02:37.9]}
45... Kd6 {[%clk 0:00:21.3]} 46. Rh5 {[%clk 0:02:36]} 46... Ke6 {[%clk
0:00:20.4]} 47. Rf5 {[%clk 0:02:32.7]} 1/2-1/2

[Event "Live Chess"]
[Site "Chess.com"]
[Date "2024.06.02"]
[Round "-"]
[White "matt1979"]
[Black "willc-h99"]
[Result "0-1"]
[WhiteElo "1404"]
[BlackElo "2546"]
[TimeControl "300"]
[EndTime "8:41:32 PDT"]
[Termination "willc-h99 won by resignation"]

1. f4 {[%clk 0:04:57.9]} 1... d6 {[%clk 0:04:58.1]} 2. Nf3 {[%clk 0:04:56.4]}
2... e5 {[%clk 0:04:57.3]} 3. fxe5 {[%clk 0:04:55.3]} 3... dxe5 {[%clk
0:04:56.6]} 4. e4 {[%clk 0:04:51.3]} 4... Nc6 {[%clk 0:04:53.1]} 5. Bb5 {[%clk
0:04:49.2]} 5... Bc5 {[%clk 0:04:51.4]} 6. c3 {[%clk 0:04:47.3]} 6... Ne7 {[%clk
0:04:44.2]} 7. d4 {[%clk 0:04:45.7]} 7... exd4 {[%clk 0:04:41.4]} 8. cxd4 {[%clk
0:04:44.7]} 8... Bb4+ {[%clk 0:04:40.5]} 9. Nc3 {[%clk 0:04:41.9]} 9... O-O
{[%clk 0:04:39.4]} 10. Bxc6 {[%clk 0:04:38.1]} 10... Nxc6 {[%clk 0:04:37.8]} 11.
O-O {[%clk 0:04:34.1]} 11... Bg4 {[%clk 0:04:32.8]} 12. d5 {[%clk 0:04:25.1]}
12... Ne5 {[%clk 0:04:31.1]} 13. h3 {[%clk 0:04:17.7]} 13... Nxf3+ {[%clk
0:04:26]} 14. gxf3 {[%clk 0:04:16.7]} 14... Bxh3 {[%clk 0:04:25.2]} 15. Kh2
{[%clk 0:04:09.2]} 15... Qh4 {[%clk 0:04:16]} 0-1

[Event "Live Chess"]
[Site "Chess.com"]
[Date "2024.06.02"]
[Round "-"]
[White "santhoshrlokesh"]
[Black "Queensandpawns"]
[Result "0-1"]
[WhiteElo "1510"]
[BlackElo "2244"]
[TimeControl "300"]
[EndTime "8:41:39 PDT"]
[Termination "Queensandpawns won by checkmate"]

1. d4 {[%clk 0:04:59.5]} 1... e5 {[%clk 0:04:56.2]} 2. dxe5 {[%clk 0:04:58.3]}
2... Nc6 {[%clk 0:04:53.8]} 3. e3 {[%clk 0:04:56.1]} 3... Nxe5 {[%clk
0:04:52.6]} 4. Nc3 {[%clk 0:04:52.1]} 4... Nf6 {[%clk 0:04:50.6]} 5. e4 {[%clk
0:04:48.4]} 5... Bb4 {[%clk 0:04:48.7]} 6. Bg5 {[%clk 0:04:45.4]} 6... h6 {[%clk
0:04:45.6]} 7. Bh4 {[%clk 0:04:41.2]} 7... g5 {[%clk 0:04:43.7]} 8. Bg3 {[%clk
0:04:39.5]} 8... Nxe4 {[%clk 0:04:42.6]} 9. Bxe5 {[%clk 0:04:32.3]} 9... Qe7
{[%clk 0:04:41.9]} 10. Bxh8 {[%clk 0:04:30.4]} 10... Nxc3+ {[%clk 0:04:36.2]}
11. Qe2 {[%clk 0:04:07.8]} 11... Nxe2+ {[%clk 0:04:33.3]} 12. Kd1 {[%clk
0:04:00.9]} 12... Nxg1 {[%clk 0:04:32.3]} 13. Rxg1 {[%clk 0:03:58.9]} 13... Qe1#
{[%clk 0:04:31.8]} 0-1

[Event "Live Chess"]
[Site "Chess.com"]
[Date "2024.06.02"]
[Round "-"]
[White "CarmelJane"]
[Black "StoreySniper"]
[Result "0-1"]
[WhiteElo "2042"]
[BlackElo "2476"]
[TimeControl "300"]
[EndTime "8:41:40 PDT"]
[Termination "StoreySniper won by resignation"]

1. Nf3 {[%clk 0:04:57.9]} 1... g6 {[%clk 0:04:59.5]} 2. g3 {[%clk 0:04:55.6]}
2... Bg7 {[%clk 0:04:58.7]} 3. Bg2 {[%clk 0:04:55.5]} 3... c5 {[%clk 0:04:58]}
4. O-O {[%clk 0:04:54.9]} 4... Nc6 {[%clk 0:04:57.6]} 5. c4 {[%clk 0:04:54.1]}
5... d6 {[%clk 0:04:56.8]} 6. Nc3 {[%clk 0:04:53.2]} 6... Nf6 {[%clk 0:04:56.5]}
7. d3 {[%clk 0:04:45.9]} 7... O-O {[%clk 0:04:55.2]} 8. Rb1 {[%clk 0:04:44.4]}
8... Bd7 {[%clk 0:04:54.7]} 9. a3 {[%clk 0:04:43.8]} 9... Ng4 {[%clk 0:04:53.1]}
10. Nd5 {[%clk 0:04:33.7]} 10... e6 {[%clk 0:04:51.1]} 11. Ne3 {[%clk
0:04:32.5]} 11... Nge5 {[%clk 0:04:47.3]} 12. b4 {[%clk 0:04:29.8]} 12... Rb8
{[%clk 0:04:39.3]} 13. bxc5 {[%clk 0:04:23.4]} 13... dxc5 {[%clk 0:04:35.1]} 14.
Nxe5 {[%clk 0:04:10.9]} 14... Bxe5 {[%clk 0:04:31.5]} 15. Ng4 {[%clk 0:04:07.5]}
15... Bg7 {[%clk 0:04:28.2]} 16. Nh6+ {[%clk 0:03:56.6]} 16... Kh8 {[%clk
0:04:26.6]} 17. Qc2 {[%clk 0:03:49.9]} 17... Nd4 {[%clk 0:04:22.6]} 18. Qd1
{[%clk 0:03:47.9]} 18... Bc6 {[%clk 0:04:11.2]} 19. Bxc6 {[%clk 0:03:38.9]}
19... Nxc6 {[%clk 0:04:10]} 20. Ng4 {[%clk 0:03:28.4]} 20... h5 {[%clk
0:04:06.9]} 21. Ne3 {[%clk 0:03:26.4]} 21... Nd4 {[%clk 0:04:05.7]} 22. Ng2
{[%clk 0:03:24.9]} 22... b6 {[%clk 0:04:04.6]} 23. h4 {[%clk 0:03:23.1]} 23...
Nf5 {[%clk 0:04:02.7]} 24. Bg5 {[%clk 0:03:21]} 24... Qd6 {[%clk 0:03:56.6]} 25.
Qd2 {[%clk 0:03:18.7]} 25... Rfe8 {[%clk 0:03:51.9]} 26. Ne3 {[%clk 0:03:15.4]}
26... Nd4 {[%clk 0:03:47.4]} 27. Nc2 {[%clk 0:03:06.2]} 27... Nf5 {[%clk
0:03:38]} 28. Bf4 {[%clk 0:03:03]} 28... e5 {[%clk 0:03:36.9]} 29. Bg5 {[%clk
0:03:02.4]} 29... e4 {[%clk 0:03:31]} 30. Ne3 {[%clk 0:02:47.6]} 30... Nd4
{[%clk 0:03:26]} 31. Nd5 {[%clk 0:02:23.5]} 31... Qe6 {[%clk 0:03:24.5]} 32. Nc7
{[%clk 0:02:09.8]} 32... Qh3 {[%clk 0:03:23.1]} 33. Nxe8 {[%clk 0:02:07.3]}
33... Nf3+ {[%clk 0:03:21.3]} 34. exf3 {[%clk 0:02:03.8]} 34... exf3 {[%clk
0:03:20.5]} 0-1

[Event "Live Chess"]
[Site "Chess.com"]
[Date "2024.06.02"]
[Round "-"]
[White "Trendle"]
[Black "lateforthesky"]
[Result "1-0"]
[WhiteElo "2599"]
[BlackElo "2071"]
[TimeControl "300"]
[EndTime "8:41:41 PDT"]
[Termination "Trendle won by resignation"]

1. d4 {[%clk 0:04:56.8]} 1... Nf6 {[%clk 0:04:58]} 2. c4 {[%clk 0:04:54.7]} 2...
g6 {[%clk 0:04:56.4]} 3. Nc3 {[%clk 0:04:52.9]} 3... Bg7 {[%clk 0:04:55.3]} 4.
Nf3 {[%clk 0:04:50.4]} 4... d6 {[%clk 0:04:53.7]} 5. Bf4 {[%clk 0:04:49.2]} 5...
O-O {[%clk 0:04:47.8]} 6. h3 {[%clk 0:04:48.4]} 6... c5 {[%clk 0:04:44.6]} 7. d5
{[%clk 0:04:44.7]} 7... Na6 {[%clk 0:04:39.9]} 8. e3 {[%clk 0:04:43.1]} 8... Nc7
{[%clk 0:04:38.4]} 9. Be2 {[%clk 0:04:40.1]} 9... a6 {[%clk 0:04:17.2]} 10. a4
{[%clk 0:04:38.7]} 10... b6 {[%clk 0:04:16.1]} 11. O-O {[%clk 0:04:37.3]} 11...
Rb8 {[%clk 0:04:15]} 12. Bh2 {[%clk 0:04:28.3]} 12... Bd7 {[%clk 0:04:14.2]} 13.
e4 {[%clk 0:04:26.7]} 13... b5 {[%clk 0:04:09.2]} 14. axb5 {[%clk 0:04:26.6]}
14... axb5 {[%clk 0:04:07.6]} 15. e5 {[%clk 0:04:23.1]} 15... dxe5 {[%clk
0:04:02.6]} 16. Nxe5 {[%clk 0:04:21]} 16... bxc4 {[%clk 0:03:45.7]} 17. Nxc4
{[%clk 0:04:11.6]} 17... Rb4 {[%clk 0:03:36.6]} 18. d6 {[%clk 0:04:06.3]} 18...
Ne6 {[%clk 0:02:59.2]} 19. Ra7 {[%clk 0:03:56.5]} 19... Nd4 {[%clk 0:02:42.4]}
20. Bd3 {[%clk 0:03:44.8]} 20... Re8 {[%clk 0:02:30.3]} 21. dxe7 {[%clk
0:03:39.7]} 21... Rxe7 {[%clk 0:02:24.8]} 22. Qa1 {[%clk 0:03:35]} 22... Bc6
{[%clk 0:01:46.7]} 23. Rxe7 {[%clk 0:03:31.1]} 23... Qxe7 {[%clk 0:01:45.3]} 24.
Bd6 {[%clk 0:03:30.9]} 24... Qe6 {[%clk 0:01:27.6]} 25. Re1 {[%clk 0:03:21.2]}
1-0

[Event "Live Chess"]
[Site "Chess.com"]
[Date "2024.06.02"]
[Round "-"]
[White "jumush"]
[Black "stevochess11"]
[Result "0-1"]
[WhiteElo "1732"]
[BlackElo "1707"]
[TimeControl "300"]
[EndTime "8:41:45 PDT"]
[Termination "stevochess11 won by checkmate"]

1. e4 {[%clk 0:04:57.6]} 1... c5 {[%clk 0:04:58.9]} 2. Nc3 {[%clk 0:04:55.5]}
2... g6 {[%clk 0:04:57.7]} 3. d4 {[%clk 0:04:48.7]} 3... cxd4 {[%clk 0:04:54.5]}
4. Qxd4 {[%clk 0:04:47.4]} 4... Nf6 {[%clk 0:04:53.5]} 5. e5 {[%clk 0:04:41.9]}
5... Nc6 {[%clk 0:04:52.2]} 6. Qe3 {[%clk 0:04:29.6]} 6... Ng4 {[%clk
0:04:44.2]} 7. Qe2 {[%clk 0:04:23.2]} 7... Ngxe5 {[%clk 0:04:37.9]} 8. Bf4
{[%clk 0:04:18.2]} 8... Bg7 {[%clk 0:04:36.3]} 9. O-O-O {[%clk 0:04:16.3]} 9...
Qa5 {[%clk 0:04:20]} 10. Kb1 {[%clk 0:04:07.9]} 10... O-O {[%clk 0:04:09.7]} 11.
Nf3 {[%clk 0:04:03.1]} 11... d6 {[%clk 0:04:03]} 12. Nxe5 {[%clk 0:03:59.2]}
12... Nxe5 {[%clk 0:04:01.7]} 13. Qd2 {[%clk 0:03:51]} 13... Be6 {[%clk
0:03:56.6]} 14. Bh6 {[%clk 0:03:43.5]} 14... Rac8 {[%clk 0:03:49.8]} 15. Bxg7
{[%clk 0:03:37.8]} 15... Kxg7 {[%clk 0:03:49.7]} 16. f4 {[%clk 0:03:26.8]} 16...
Nd7 {[%clk 0:03:16.9]} 17. Bd3 {[%clk 0:03:05.3]} 17... Rc6 {[%clk 0:02:55.5]}
18. h3 {[%clk 0:02:59.2]} 18... Rfc8 {[%clk 0:02:53.6]} 19. g4 {[%clk
0:02:56.7]} 19... Rxc3 {[%clk 0:02:44.1]} 20. bxc3 {[%clk 0:02:53.2]} 20...
Qxa2+ {[%clk 0:02:42.5]} 21. Kc1 {[%clk 0:02:51.4]} 21... Qa1# {[%clk
0:02:41.7]} 0-1

[Event "Live Chess"]
[Site "Chess.com"]
[Date "2024.06.02"]
[Round "-"]
[White "Bradfield133"]
[Black "TigerTank70"]
[Result "0-1"]
[WhiteElo "1819"]
[BlackElo "2177"]
[TimeControl "300"]
[EndTime "8:41:52 PDT"]
[Termination "TigerTank70 won on time"]

1. c4 {[%clk 0:04:56.4]} 1... e5 {[%clk 0:04:59]} 2. g3 {[%clk 0:04:55.4]} 2...
Nc6 {[%clk 0:04:57.1]} 3. Bg2 {[%clk 0:04:54]} 3... d6 {[%clk 0:04:56.2]} 4. Nc3
{[%clk 0:04:52.7]} 4... Be7 {[%clk 0:04:54.8]} 5. e3 {[%clk 0:04:50.6]} 5... Nf6
{[%clk 0:04:51.6]} 6. Nge2 {[%clk 0:04:49.7]} 6... Bg4 {[%clk 0:04:50.4]} 7. h3
{[%clk 0:04:44.9]} 7... Bf5 {[%clk 0:04:47]} 8. d3 {[%clk 0:04:41.8]} 8... Qc8
{[%clk 0:04:44.7]} 9. g4 {[%clk 0:04:39.4]} 9... Bd7 {[%clk 0:04:42.4]} 10. Nd5
{[%clk 0:04:28.8]} 10... h5 {[%clk 0:04:35.1]} 11. f3 {[%clk 0:04:14.2]} 11...
Nxd5 {[%clk 0:04:20.2]} 12. cxd5 {[%clk 0:04:11.1]} 12... Nb4 {[%clk 0:04:17.3]}
13. Qb3 {[%clk 0:04:06.7]} 13... a5 {[%clk 0:04:12.9]} 14. a3 {[%clk 0:04:03.3]}
14... Na6 {[%clk 0:04:10]} 15. d4 {[%clk 0:03:55.5]} 15... Bh4+ {[%clk
0:04:07.6]} 16. Kf1 {[%clk 0:03:51.4]} 16... e4 {[%clk 0:03:46]} 17. gxh5 {[%clk
0:03:09.9]} 17... exf3 {[%clk 0:03:33.2]} 18. Bxf3 {[%clk 0:03:03.3]} 18...
Bxh3+ {[%clk 0:03:31]} 19. Kg1 {[%clk 0:02:50.3]} 19... Qf5 {[%clk 0:03:26.4]}
20. e4 {[%clk 0:02:20]} 20... Qd7 {[%clk 0:03:23.6]} 21. Nf4 {[%clk 0:01:59.6]}
21... a4 {[%clk 0:03:08]} 22. Qe3 {[%clk 0:01:48.4]} 22... Bg5 {[%clk
0:03:01.3]} 23. Qf2 {[%clk 0:01:28.2]} 23... Bg4 {[%clk 0:02:42]} 24. Qg3 {[%clk
0:01:03.3]} 24... Bxf3 {[%clk 0:02:35]} 25. Qxf3 {[%clk 0:01:01.5]} 25... Bf6
{[%clk 0:02:04.5]} 26. Be3 {[%clk 0:00:56.8]} 26... c6 {[%clk 0:01:59]} 27. h6
{[%clk 0:00:30.6]} 27... gxh6 {[%clk 0:01:51]} 28. Nh5 {[%clk 0:00:22]} 28...
Rg8+ {[%clk 0:01:47]} 29. Kf1 {[%clk 0:00:17.5]} 29... Be7 {[%clk 0:01:41.8]}
30. Nf6+ {[%clk 0:00:11.9]} 30... Bxf6 {[%clk 0:01:38.3]} 31. Qxf6 {[%clk
0:00:11.8]} 31... Qe7 {[%clk 0:01:32.1]} 32. Qxe7+ {[%clk 0:00:09.6]} 32... Kxe7
{[%clk 0:01:31.3]} 33. Rxh6 {[%clk 0:00:08.8]} 33... cxd5 {[%clk 0:01:27.6]} 34.
exd5 {[%clk 0:00:07.4]} 34... Nc7 {[%clk 0:01:26.4]} 35. Bf4 {[%clk 0:00:05.6]}
35... Rg6 {[%clk 0:01:19.9]} 36. Rh5 {[%clk 0:00:03.5]} 36... Rag8 {[%clk
0:01:15.6]} 37. Re1+ {[%clk 0:00:02.5]} 37... Kd7 {[%clk 0:01:13.8]} 38. Bh2
{[%clk 0:00:00.1]} 38... Rf6+ {[%clk 0:01:06.4]} 0-1

[Event "Live Chess"]
[Site "Chess.com"]
[Date "2024.06.02"]
[Round "-"]
[White "best137"]
[Black "FREDERICKtheMATE"]
[Result "0-1"]
[WhiteElo "1524"]
[BlackElo "2663"]
[TimeControl "300"]
[EndTime "8:42:01 PDT"]
[Termination "FREDERICKtheMATE won by checkmate"]

1. c4 {[%clk 0:04:58.3]} 1... c6 {[%clk 0:04:59.2]} 2. Nc3 {[%clk 0:04:57.1]}
2... d5 {[%clk 0:04:59.1]} 3. d4 {[%clk 0:04:55.5]} 3... Nf6 {[%clk 0:04:57.9]}
4. Nf3 {[%clk 0:04:53.3]} 4... e6 {[%clk 0:04:56.2]} 5. Bg5 {[%clk 0:04:50.4]}
5... Nbd7 {[%clk 0:04:51.7]} 6. e4 {[%clk 0:04:45.3]} 6... dxe4 {[%clk
0:04:49.7]} 7. Nxe4 {[%clk 0:04:44]} 7... Bb4+ {[%clk 0:04:47.4]} 8. Nfd2 {[%clk
0:04:37]} 8... h6 {[%clk 0:04:38]} 9. Nxf6+ {[%clk 0:04:30.3]} 9... Nxf6 {[%clk
0:04:37.9]} 10. Bh4 {[%clk 0:04:25.6]} 10... Qxd4 {[%clk 0:04:35.5]} 11. Bxf6
{[%clk 0:04:10.6]} 11... Qxf6 {[%clk 0:04:34.1]} 12. Be2 {[%clk 0:04:06.4]}
12... Qxb2 {[%clk 0:04:31.7]} 13. Rb1 {[%clk 0:03:51.2]} 13... Bxd2+ {[%clk
0:04:29.1]} 14. Qxd2 {[%clk 0:03:43.6]} 14... Qxb1+ {[%clk 0:04:27.5]} 15. Bd1
{[%clk 0:03:43.1]} 15... Qe4+ {[%clk 0:04:25]} 16. Be2 {[%clk 0:03:40.4]} 16...
Qxg2 {[%clk 0:04:21.6]} 17. Rf1 {[%clk 0:03:39.1]} 17... O-O {[%clk 0:04:20.2]}
18. f4 {[%clk 0:03:29]} 18... e5 {[%clk 0:04:17.6]} 19. f5 {[%clk 0:03:26.1]}
19... f6 {[%clk 0:04:12.4]} 20. Rf2 {[%clk 0:02:53.8]} 20... Qg1+ {[%clk
0:04:06.2]} 21. Rf1 {[%clk 0:02:51.5]} 21... Qd4 {[%clk 0:04:03.9]} 22. Qc1
{[%clk 0:02:42]} 22... b6 {[%clk 0:04:01.2]} 23. Rf3 {[%clk 0:02:33.2]} 23...
Ba6 {[%clk 0:03:57]} 24. Rg3 {[%clk 0:02:30.7]} 24... Kh8 {[%clk 0:03:51.8]} 25.
Rh3 {[%clk 0:02:23]} 25... Qg1+ {[%clk 0:03:47]} 26. Bf1 {[%clk 0:02:19.2]}
26... Qg5 {[%clk 0:03:46.2]} 27. Qa3 {[%clk 0:01:52.4]} 27... Rad8 {[%clk
0:03:40.2]} 28. Rg3 {[%clk 0:01:46.8]} 28... Qd2# {[%clk 0:03:36.3]} 0-1

[Event "Live Chess"]
[Site "Chess.com"]
[Date "2024.06.02"]
[Round "-"]
[White "nitrofish07"]
[Black "mychess51"]
[Result "0-1"]
[WhiteElo "2082"]
[BlackElo "1753"]
[TimeControl "300"]
[EndTime "8:42:07 PDT"]
[Termination "mychess51 won by resignation"]

1. d4 {[%clk 0:04:59]} 1... e6 {[%clk 0:04:58]} 2. c4 {[%clk 0:04:58.5]} 2... d5
{[%clk 0:04:56.6]} 3. g3 {[%clk 0:04:58.2]} 3... Nf6 {[%clk 0:04:55.5]} 4. Bg2
{[%clk 0:04:57.8]} 4... Be7 {[%clk 0:04:55]} 5. Nf3 {[%clk 0:04:57.5]} 5... O-O
{[%clk 0:04:53.4]} 6. O-O {[%clk 0:04:57.1]} 6... c5 {[%clk 0:04:52.5]} 7. cxd5
{[%clk 0:04:53.9]} 7... cxd4 {[%clk 0:04:51.3]} 8. Nxd4 {[%clk 0:04:51.4]} 8...
Nxd5 {[%clk 0:04:47.2]} 9. Nb3 {[%clk 0:04:50.1]} 9... Nc6 {[%clk 0:04:45.4]}
10. e4 {[%clk 0:04:46.8]} 10... Ndb4 {[%clk 0:04:42.3]} 11. Qe2 {[%clk 0:04:43]}
11... Qc7 {[%clk 0:04:28.6]} 12. a3 {[%clk 0:04:41]} 12... Na6 {[%clk
0:04:21.7]} 13. Bf4 {[%clk 0:04:39.8]} 13... Qb6 {[%clk 0:04:15.8]} 14. N1d2
{[%clk 0:04:32.3]} 14... e5 {[%clk 0:04:08.4]} 15. Be3 {[%clk 0:04:30.4]} 15...
Qc7 {[%clk 0:04:06.9]} 16. Rac1 {[%clk 0:04:28.3]} 16... Be6 {[%clk 0:03:58]}
17. Kh1 {[%clk 0:04:23.3]} 17... Rfd8 {[%clk 0:03:51.1]} 18. Rfd1 {[%clk
0:04:17.9]} 18... g6 {[%clk 0:03:44.2]} 19. Nc5 {[%clk 0:04:11.8]} 19... Nxc5
{[%clk 0:03:39.3]} 20. Bxc5 {[%clk 0:04:11.7]} 20... Bxc5 {[%clk 0:03:34.6]} 21.
Rxc5 {[%clk 0:04:11.6]} 21... Qb6 {[%clk 0:03:30.5]} 22. b4 {[%clk 0:04:08.5]}
22... a5 {[%clk 0:03:24.9]} 23. Qb5 {[%clk 0:04:02.4]} 23... Qxb5 {[%clk
0:03:16]} 24. Rxb5 {[%clk 0:04:02.3]} 24... axb4 {[%clk 0:03:13.5]} 25. axb4
{[%clk 0:03:58.9]} 25... Ra2 {[%clk 0:03:02]} 26. Rxb7 {[%clk 0:03:43.2]} 26...
Raxd2 {[%clk 0:02:58.5]} 27. Rxd2 {[%clk 0:03:41.5]} 27... Rxd2 {[%clk
0:02:56.6]} 28. h4 {[%clk 0:03:41.4]} 28... Rxf2 {[%clk 0:02:42.6]} 29. b5
{[%clk 0:03:40.4]} 29... Nd4 {[%clk 0:02:40.9]} 30. b6 {[%clk 0:03:37.8]} 30...
Rb2 {[%clk 0:02:35.6]} 31. Rb8+ {[%clk 0:03:35]} 31... Kg7 {[%clk 0:02:33.9]}
32. Bf1 {[%clk 0:03:30.2]} 32... Nf3 {[%clk 0:02:25]} 33. Bg2 {[%clk 0:03:18.1]}
33... Rb1+ {[%clk 0:02:20.2]} 34. Bf1 {[%clk 0:03:17.2]} 34... Bh3 {[%clk
0:02:17.9]} 0-1

[Event "Live Chess"]
[Site "Chess.com"]
[Date "2024.06.02"]
[Round "-"]
[White "GEMdzq"]
[Black "RichardABates"]
[Result "1-0"]
[WhiteElo "2279"]
[BlackElo "2364"]
[TimeControl "300"]
[EndTime "8:42:36 PDT"]
[Termination "GEMdzq won on time"]

1. e4 {[%clk 0:04:58.4]} 1... c5 {[%clk 0:04:58.4]} 2. d4 {[%clk 0:04:57.6]}
2... cxd4 {[%clk 0:04:56.7]} 3. c3 {[%clk 0:04:57.3]} 3... Nf6 {[%clk 0:04:55]}
4. e5 {[%clk 0:04:56.2]} 4... Nd5 {[%clk 0:04:53.4]} 5. Qxd4 {[%clk 0:04:55.5]}
5... e6 {[%clk 0:04:52.4]} 6. Bd3 {[%clk 0:04:53.8]} 6... Nc6 {[%clk 0:04:50.9]}
7. Qe4 {[%clk 0:04:53.4]} 7... f5 {[%clk 0:04:49.8]} 8. exf6 {[%clk 0:04:53.3]}
8... Nxf6 {[%clk 0:04:48.7]} 9. Qh4 {[%clk 0:04:52.8]} 9... Be7 {[%clk
0:04:42.6]} 10. Nf3 {[%clk 0:04:48.6]} 10... O-O {[%clk 0:04:40.3]} 11. Bg5
{[%clk 0:04:46.4]} 11... h6 {[%clk 0:04:39.1]} 12. Bxf6 {[%clk 0:04:45.6]} 12...
Bxf6 {[%clk 0:04:37.8]} 13. Qe4 {[%clk 0:04:45.2]} 13... d5 {[%clk 0:04:32.9]}
14. Qh7+ {[%clk 0:04:41.2]} 14... Kf7 {[%clk 0:04:31.6]} 15. Qg6+ {[%clk
0:04:40.4]} 15... Ke7 {[%clk 0:04:29.9]} 16. Nbd2 {[%clk 0:04:31.7]} 16... e5
{[%clk 0:04:26.7]} 17. c4 {[%clk 0:03:53.7]} 17... d4 {[%clk 0:03:29.1]} 18. O-O
{[%clk 0:03:51]} 18... Be6 {[%clk 0:03:25.9]} 19. Rfe1 {[%clk 0:03:45.6]} 19...
Kd7 {[%clk 0:03:17.1]} 20. Bf5 {[%clk 0:03:41]} 20... Bxf5 {[%clk 0:03:09.1]}
21. Qxf5+ {[%clk 0:03:40]} 21... Kc7 {[%clk 0:03:07.8]} 22. Rab1 {[%clk
0:03:19.6]} 22... Qd7 {[%clk 0:03:02.6]} 23. Qe4 {[%clk 0:03:14.5]} 23... a5
{[%clk 0:02:52.8]} 24. a3 {[%clk 0:03:05.9]} 24... a4 {[%clk 0:02:41.8]} 25. c5
{[%clk 0:03:00.9]} 25... g5 {[%clk 0:02:20]} 26. Nc4 {[%clk 0:02:55.6]} 26...
Rae8 {[%clk 0:02:03.4]} 27. b4 {[%clk 0:02:24.2]} 27... g4 {[%clk 0:01:55.5]}
28. Nfd2 {[%clk 0:02:20.8]} 28... Bg5 {[%clk 0:01:51.1]} 29. b5 {[%clk
0:02:19.9]} 29... Bxd2 {[%clk 0:01:07.5]} 30. Nxd2 {[%clk 0:02:19.8]} 30... Rf4
{[%clk 0:00:54.3]} 31. bxc6 {[%clk 0:02:16.6]} 31... Rxe4 {[%clk 0:00:44.8]} 32.
cxd7 {[%clk 0:02:15.9]} 32... Rxe1+ {[%clk 0:00:43.2]} 33. Rxe1 {[%clk
0:02:15.8]} 33... Kxd7 {[%clk 0:00:42.2]} 34. Ne4 {[%clk 0:02:10.8]} 34... Kc6
{[%clk 0:00:40.5]} 35. Rb1 {[%clk 0:02:09.5]} 35... Re7 {[%clk 0:00:36.8]} 36.
Kf1 {[%clk 0:02:07.2]} 36... Kd5 {[%clk 0:00:34.2]} 37. f3 {[%clk 0:02:06.4]}
37... gxf3 {[%clk 0:00:31.7]} 38. gxf3 {[%clk 0:02:05.6]} 38... Rf7 {[%clk
0:00:29.9]} 39. Ke2 {[%clk 0:02:04.3]} 39... h5 {[%clk 0:00:26.5]} 40. Rb6
{[%clk 0:02:01.7]} 40... h4 {[%clk 0:00:23.3]} 41. Rd6+ {[%clk 0:01:50.7]} 41...
Kc4 {[%clk 0:00:21.8]} 42. Rd8 {[%clk 0:01:40.6]} 42... Rg7 {[%clk 0:00:19.7]}
43. h3 {[%clk 0:01:27.6]} 43... Rg2+ {[%clk 0:00:17.4]} 44. Nf2 {[%clk
0:01:22.4]} 44... Kxc5 {[%clk 0:00:13.1]} 45. Re8 {[%clk 0:01:18.7]} 45... Kd5
{[%clk 0:00:11.3]} 46. Rb8 {[%clk 0:01:15.8]} 46... Kc6 {[%clk 0:00:07.8]} 47.
Rh8 {[%clk 0:01:05.8]} 47... d3+ {[%clk 0:00:05.8]} 48. Ke3 {[%clk 0:01:04.9]}
48... d2 {[%clk 0:00:03.9]} 49. Rd8 {[%clk 0:01:02.8]} 1-0